fUST/lending_fUST_20250811
["ID","MTS","AMOUNT","RATE_DAILY","PERIOD"]
[378444372,1754863838835,-460.0,0.0002014,2]
[378444375,1754863838845,-460.0,0.0002014,2]
[378444377,1754863838854,-463.25217919,0.0002014,2]
[378444379,1754863838864,-460.0,0.0002014,2]
[378444381,1754863838873,-460.0,0.0002014,2]
[378444383,1754863838882,-460.0,0.0002014,2]
[378444385,1754863838892,-389.63359494,0.0002014,2]
[378444387,1754863838901,-460.0,0.0002014,2]
[378444389,1754863838910,-460.0,0.0002014,2]
[378444391,1754863838920,-460.0,0.0002014,2]
[378444393,1754863838929,-480.53496896,0.0002014,2]
[378444395,1754863838939,-460.0,0.0002014,2]
[378444397,1754863838949,-460.0,0.0002014,2]
[378444399,1754863838958,-280.02038694,0.0002014,2]
[378444401,1754863838967,-460.0,0.0002014,2]
[378444403,1754863838977,-460.0,0.0002014,2]
[378444405,1754863838987,-460.0,0.0002014,2]
[378444407,1754863838996,-460.0,0.0002014,2]
[378444409,1754863839005,-460.0,0.0002014,2]
[378444411,1754863839014,-460.0,0.0002014,2]
[378444413,1754863839024,-460.0,0.0002014,2]
[378444415,1754863839035,-460.0,0.0002014,2]
[378444417,1754863839044,-460.0,0.0002014,2]
[378444419,1754863839052,-608.95,0.0002014,2]
[378444421,1754863839062,-460.0,0.0002014,2]
[378444423,1754863839071,-463.31788289,0.0002014,2]
[378444425,1754863839080,-457.29280489,0.0002014,2]
[378444427,1754863839092,-2.70719511,0.0002014,2]
[378444429,1754863839101,-415.17998006,0.0002014,2]
[378444432,1754863839112,-44.82001994,0.0002014,2]
[378444434,1754863839121,-457.29280489,0.0002014,2]
[378444437,1754863839145,-77.15719511,0.0002014,2]
[378444439,1754863839154,-348.84107142,0.0002014,2]
[378444441,1754863839166,-111.15892858,0.0002014,2]
[378444443,1754863839175,-348.84107142,0.0002014,2]
[378445307,1754863864733,2608.72316857,0.000199,2]
[378445309,1754863903354,295.656793,0.00027672,30]
[378445310,1754863923534,745.23362022,0.000189,2]
[378445314,1754864068508,2676.79612114,0.000199,2]
[378445315,1754864109983,19696.85763922,0.00019454,2]
[378445316,1754864110007,5203.14236078,0.00019454,2]
[378445318,1754864138144,302.8183302,0.0001926,2]
[378445319,1754864138186,151.4091651,0.00019453,2]
[378445320,1754864168045,250.0,0.00019131,2]
[378445336,1754864224888,496.82241348,0.000189,2]
[378445338,1754864274469,2759.01988351,0.000199,2]
[378445339,1754864320438,150.52844408,8.6e-07,2]
[378445340,1754864320518,150.52844408,8.6e-07,2]
[378445341,1754864320615,150.52844408,8.6e-07,2]
[378445342,1754864320715,150.52844408,8.6e-07,2]
[378445343,1754864320803,150.52844408,8.6e-07,2]
[378445344,1754864320993,150.52844408,8.6e-07,2]
[378445345,1754864321101,150.52844408,8.6e-07,2]
[378445346,1754864321211,150.52844408,8.6e-07,2]
[378445347,1754864321312,150.52844408,8.6e-07,2]
[378445348,1754864335364,19482.03185021,0.00019939,2]
[378445349,1754864335386,1034.37056212,0.00019939,2]
[378445350,1754864347775,310.32269132,0.00019532,2]
[378445351,1754864374499,302.8183302,0.00019841,2]
[378445365,1754864447659,295.0,0.00019858,2]
[378445366,1754864462247,295.0,0.00019926,2]
[378445367,1754864467102,3069.2834406,0.000199,2]
[378445369,1754864528862,331.21494232,0.000189,2]
[378445370,1754864548671,705.26522062,0.00031432,45]
[378445371,1754864568388,185.59795936,0.00019933,2]
[378445376,1754864642094,3073.09156989,0.000199,2]
[378445377,1754864666182,185.59795936,0.00019933,2]
[378445378,1754864669869,10000.0,0.00019334,2]
[378445379,1754864675405,5000.0,0.00019956,2]
[378445389,1754864768022,185.59795936,0.00019932,2]
[378445395,1754864818810,5732.10458547,0.00019469,2]
[378445396,1754864818832,6493.50857993,0.00019469,2]
[378445397,1754864825120,-300.0,0.00020031,2]
[378445398,1754864825143,-1200.0,0.00020032,2]
[378445399,1754864825164,-254.31827841,0.00020032,2]
[378445400,1754864825184,-1200.0,0.00020032,2]
[378445401,1754864825205,-300.0,0.00020033,2]
[378445402,1754864825225,-300.0,0.00020033,2]
[378445403,1754864825246,-300.0,0.00020033,2]
[378445404,1754864825266,-460.0,0.00020034,2]
[378445405,1754864825289,-460.0,0.00020034,2]
[378445406,1754864825310,-460.0,0.00020034,2]
[378445407,1754864825330,-460.0,0.00020034,2]
[378445408,1754864825352,-460.0,0.00020034,2]
[378445409,1754864825374,-460.0,0.00020034,2]
[378445410,1754864825394,-460.0,0.00020034,2]
[378445411,1754864825416,-319.30213952,0.00020034,2]
[378445412,1754864831731,220.80996155,0.000189,2]
[378445413,1754864837826,2980.53681803,0.000199,2]
[378445414,1754864848037,4730.68056275,0.00019956,2]
[378445415,1754864856539,5000.0,0.00019956,2]
[378445418,1754864865323,185.59795936,0.00019934,2]
[378445419,1754864872224,5000.0,0.00019956,2]
[378445421,1754864900621,200.467978,0.00013699,2]
[378445423,1754864923499,5188.39814038,0.0001,2]
[378445424,1754864923521,12255.35199156,0.0001,2]
[378445425,1754864931649,5000.0,0.00019956,2]
[378445426,1754864946954,5000.0,0.00019956,2]
[378445427,1754864963370,5000.0,0.00019956,2]
[378445429,1754864980348,2744.64800844,0.00019956,2]
[378445430,1754864980372,2255.35199156,0.00019956,2]
[378445433,1754864995443,2367.23952829,0.00019956,2]
[378445437,1754865013852,4138.3205443,0.000199,2]
[378445462,1754865032865,-160.0,0.0002,3]
[378445463,1754865032878,-300.0,0.00020033,2]
[378445464,1754865032888,-1200.0,0.00020033,2]
[378445465,1754865032898,-326.9,0.00020034,2]
[378445466,1754865032907,-460.0,0.00020034,2]
[378445467,1754865032917,-460.0,0.00020034,2]
[378445468,1754865032927,-460.0,0.00020034,2]
[378445469,1754865032936,-460.0,0.00020034,2]
[378445470,1754865032946,-469.95979129,0.00020034,2]
[378445471,1754865032955,-460.0,0.00020034,2]
[378445472,1754865032965,-481.17404608,0.00020034,2]
[378445473,1754865032975,-225.82892987,0.00020034,2]
[378445474,1754865032984,-466.47,0.00020034,2]
[378445475,1754865032994,-608.55,0.00020034,2]
[378445476,1754865033003,-460.0,0.00020136,2]
[378445477,1754865033014,-299.528462,0.00020136,2]
[378445478,1754865033024,-460.0,0.00020136,2]
[378445479,1754865033033,-130.29866476,0.00020136,2]
[378445521,1754865038733,-329.70133524,0.00020136,2]
[378445522,1754865038743,-578.2,0.00020136,2]
[378445523,1754865038752,-460.0,0.00020139,2]
[378445524,1754865038761,-55.25700619,0.00020139,2]
[378445717,1754865040926,-109.00956129,0.00020139,2]
[378445718,1754865040935,-527.58,0.00020139,2]
[378445719,1754865040944,-563.04319176,0.00020139,2]
[378445720,1754865040954,-151.0,0.0002014,2]
[378445721,1754865040963,-151.0,0.0002014,2]
[378445722,1754865040972,-151.0,0.0002014,2]
[378445723,1754865040981,-152.89904,0.0002014,2]
[378445724,1754865040991,-151.0,0.0002014,2]
[378445726,1754865041000,-151.0,0.0002014,2]
[378445728,1754865041009,-151.0,0.0002014,2]
[378445730,1754865041019,-151.0,0.0002014,2]
[378445732,1754865041028,-151.0,0.0002014,2]
[378445734,1754865041037,-220.94969,0.0002014,2]
[378445736,1754865041047,-151.0,0.0002014,2]
[378445738,1754865041056,-151.0,0.0002014,2]
[378445740,1754865041066,-196.677394,0.0002014,2]
[378445742,1754865041075,-196.677394,0.0002014,2]
[378445744,1754865041084,-196.677394,0.0002014,2]
[378445746,1754865041093,-196.677394,0.0002014,2]
[378445748,1754865041103,-501.68400595,0.0002014,2]
[378445750,1754865041114,-151.0,0.0002014,2]
[378445753,1754865041126,-151.0,0.0002014,2]
[378445754,1754865041137,-151.0,0.00020142,2]
[378445757,1754865041147,-151.0,0.00020142,2]
[378445759,1754865041156,-151.0,0.00020142,2]
[378445761,1754865041166,-151.0,0.00020142,2]
[378445762,1754865041176,-151.0,0.00020142,2]
[378445764,1754865041186,-151.0,0.00020142,2]
[378445767,1754865041195,-151.0,0.00020142,2]
[378445768,1754865041205,-295.0,0.00020168,2]
[378445770,1754865041214,-460.0,0.00020186,2]
[378445773,1754865041224,-297.00559158,0.00020186,2]
[378445775,1754865041233,-460.0,0.00020186,2]
[378445777,1754865041242,-151.0,0.00020187,2]
[378445778,1754865041252,-383.686401,0.00020187,2]
[378445781,1754865041262,-383.686401,0.00020187,2]
[378445783,1754865041271,-151.0,0.00020187,2]
[378445785,1754865041281,-151.004575,0.00020187,2]
[378445787,1754865041290,-196.677394,0.00020187,2]
[378445789,1754865041299,-196.677394,0.00020187,2]
[378445790,1754865041309,-151.0,0.00020187,2]
[378445792,1754865041318,-200.467978,0.00020187,2]
[378445794,1754865041328,-460.0,0.00020307,2]
[378445796,1754865041338,-460.0,0.00020307,2]
[378445798,1754865041347,-460.0,0.00020307,2]
[378445800,1754865041356,-460.0,0.00020307,2]
[378445802,1754865041366,-460.0,0.00020307,2]
[378445804,1754865041375,-543.64226108,0.00020307,2]
[378445807,1754865041385,-466.8464826,0.00020308,2]
[378445809,1754865041394,-460.0,0.00020308,2]
[378445810,1754865041403,-460.0,0.00020308,2]
[378445813,1754865041413,-460.0,0.00020308,2]
[378445814,1754865041422,-608.55,0.00020308,2]
[378445816,1754865041431,-2107.21729708,0.00020314,2]
[378445819,1754865041441,-151.0,0.00020341,2]
[378445821,1754865041451,-151.0,0.00020341,2]
[378445822,1754865041461,-151.0,0.00020341,2]
[378445824,1754865041472,-168.0,0.00020379,2]
[378445826,1754865041481,-295.0,0.00020392,2]
[378445828,1754865041489,-578.2,0.0002041,2]
[378445830,1754865041501,-460.0,0.00020412,2]
[378445832,1754865041512,-460.0,0.00020412,2]
[378445835,1754865041522,-460.0,0.00020412,2]
[378445837,1754865041531,-460.0,0.00020412,2]
[378445839,1754865041540,-460.0,0.00020412,2]
[378445841,1754865041550,-500.0,0.00020412,2]
[378445842,1754865041560,-152.3743401,0.00020412,2]
[378445844,1754865041570,-500.0,0.00020412,2]
[378445846,1754865041579,-335.7630001,0.00020412,2]
[378445848,1754865041588,-228.6484127,0.00020412,2]
[378445850,1754865041598,-424.85996228,0.00020412,2]
[378445853,1754865041607,-444.77873775,0.00020413,2]
[378445855,1754865041617,-460.0,0.00020413,2]
[378445856,1754865041626,-67.98796066,0.00020413,2]
[378446556,1754865086501,-174.86620844,0.00020034,2]
[378446560,1754865117464,21239.08793585,0.00019803,2]
[378446561,1754865117488,3660.91206415,0.00019803,2]
[378446563,1754865119928,3000.0,0.00027999,30]
[378446570,1754865133222,862.01224816,0.000189,2]
[378446572,1754865136374,179.052655,0.00019863,2]
[378446576,1754865153648,200.0,0.00029875,120]
[378446578,1754865155959,200.0,0.00029875,120]
[378446579,1754865185376,4167.06612476,0.000199,2]
[378446581,1754865200863,188.702426,0.00019747,2]
[378446583,1754865234107,318.84602,0.00019746,2]
[378446586,1754865360975,210.35256253,0.00019933,2]
[378446588,1754865400501,4028.16392064,0.000199,2]
[378446590,1754865434670,574.67483211,0.000189,2]
[378446594,1754865614653,3488.89950769,0.000199,2]
[378446596,1754865682743,302.84859387,0.00019801,2]
[378446598,1754865736286,383.11655474,0.000189,2]
[378446602,1754865812390,3436.33329213,0.000199,2]
[378446603,1754865863335,200.863835,0.00013699,2]
[378446608,1754865995580,3321.78884903,0.000199,2]
[378446612,1754866037912,255.41103649,0.000189,2]
[378446613,1754866048129,-1200.0,0.0002003,2]
[378446614,1754866048149,-1200.0,0.0002003,2]
[378446615,1754866048169,-300.0,0.0002003,2]
[378446616,1754866048189,-300.0,0.00020031,2]
[378446617,1754866048209,-300.0,0.00020031,2]
[378446618,1754866048228,-300.0,0.00020031,2]
[378446619,1754866048250,-555.56,0.00020034,2]
[378446620,1754866048270,-300.0,0.00020087,2]
[378446621,1754866048294,-5291.11060275,0.00020088,2]
[378446622,1754866076499,200.0,0.00029875,120]
[378446623,1754866078101,200.0,0.00029875,120]
[378446625,1754866123368,293.342468,0.00019697,2]
[378446628,1754866156748,179.052655,0.00019863,2]
[378446632,1754866186215,3211.06255413,0.000199,2]
[378446650,1754866231984,-532.41,0.00020034,2]
[378446651,1754866231994,-596.88939725,0.00020088,2]
[378446652,1754866232004,-200.863835,0.00020187,2]
[378446653,1754866232013,-336.51729597,0.00020306,2]
[378446654,1754866232027,-500.0,0.00020306,2]
[378446655,1754866232037,-290.37947178,0.00020308,2]
[378446656,1754866232049,-242.03052822,0.00020308,2]
[378446657,1754866232059,-300.52130155,0.00020412,2]
[378446658,1754866232068,-334.45600397,0.00020413,2]
[378446659,1754866232077,-151.0,0.00020414,2]
[378446660,1754866232087,-151.0,0.00020414,2]
[378446661,1754866232096,-151.0,0.00020414,2]
[378446662,1754866232106,-151.0,0.00020414,2]
[378446663,1754866232116,-474.81647263,0.00020582,2]
[378446676,1754866233715,737.49780057,0.00019694,2]
[378446677,1754866233738,4571.50219943,0.00019694,2]
[378446724,1754866238049,-1224.88555491,0.00020099,2]
[378446924,1754866239827,-1189.4,0.00020099,2]
[378447653,1754866247105,168.0,0.00019795,2]
[378447801,1754866249714,24900.0,0.00019777,2]
[378447827,1754866267920,360.49780057,0.00019777,2]
[378447828,1754866267942,639.50219943,0.00019777,2]
[378447830,1754866339145,722.99786888,0.000189,2]
[378447831,1754866375436,3104.02713563,0.000199,2]
[378447833,1754866449715,5888.0,0.00019823,2]
[378447834,1754866547955,3069.11658918,0.000199,2]
[378447836,1754866620001,397.0,0.00031435,120]
[378447837,1754866640377,481.99857925,0.000189,2]
[378447838,1754866645697,168.0,0.00019567,2]
[378447839,1754866663867,277.0,0.00031435,120]
[378447840,1754866684295,277.0,0.00031435,120]
[378447841,1754866708205,277.0,0.00031435,120]
[378447842,1754866730904,2966.8127027,0.000199,2]
[378447843,1754866750029,270.08717451,0.00019486,2]
[378447844,1754866866320,201.518703,0.00013699,2]
[378447846,1754866927089,2867.91894604,0.000199,2]
[378447847,1754866941722,321.33238617,0.000189,2]
[378447848,1754866942293,1790.01759039,0.00019956,2]
[378447849,1754866947029,208.9292582,0.00019365,2]
[378447851,1754866991172,199.80338576,0.00019888,2]
[378447852,1754867019872,500.0,0.00019465,2]
[378447853,1754867025783,502.33564512,0.00019465,2]
[378447854,1754867044725,1430.0,0.0001982,2]
[378447855,1754867048875,1430.0,0.00019577,2]
[378447856,1754867053008,1430.0,0.00019737,2]
[378447858,1754867058069,1430.0,0.0001995,2]
[378447859,1754867062319,377.60183574,0.00019749,2]
[378447860,1754867062342,1052.39816426,0.00019749,2]
[378447861,1754867099678,1002.6616153,0.00019233,2]
[378447868,1754867125629,288.21331,0.00019255,2]
[378447869,1754867135667,3195.78779212,0.000199,2]
[378447872,1754867224104,24460.93911832,0.00019178,2]
[378447873,1754867224128,439.06088168,0.00019178,2]
[378447874,1754867235118,-300.0,0.00019986,2]
[378447875,1754867235139,-1200.0,0.00019986,2]
[378447876,1754867235160,-300.0,0.00019987,2]
[378447877,1754867235180,-300.0,0.00019987,2]
[378447878,1754867235201,-300.0,0.00019987,2]
[378447879,1754867235221,-300.0,0.00019987,2]
[378447880,1754867235244,-1200.0,0.00019987,2]
[378447881,1754867235266,-500.0,0.00019988,2]
[378447882,1754867235287,-500.0,0.00019988,2]
[378447883,1754867235309,-500.0,0.00019988,2]
[378447884,1754867235343,-204.13800299,0.00019988,2]
[378447885,1754867235367,-482.83501083,0.00019988,2]
[378447886,1754867235388,-300.9403539,0.00019988,2]
[378447887,1754867235411,-500.0,0.00019988,2]
[378447888,1754867235433,-1755.77700817,0.00019989,2]
[378447889,1754867243238,214.22159078,0.000189,2]
[378447890,1754867248106,1000.289089,0.00019298,2]
[378447891,1754867250810,183.0792017,0.00019452,2]
[378447893,1754867340408,3229.12891282,0.000199,2]
[378447909,1754867432287,-1041.446,0.00019977,2]
[378447911,1754867432300,-1141.87210187,0.00019977,2]
[378447914,1754867432309,-1200.0,0.00019988,2]
[378447916,1754867432318,-8262.3198795,0.00019989,2]
[378447918,1754867432327,-160.0,0.0002,3]
[378447920,1754867432336,-160.0,0.0002,3]
[378447921,1754867432345,-164.75944565,0.00020017,2]
[378447924,1754867432354,-500.0,0.0002002,2]
[378447927,1754867432363,-300.0,0.0002004,2]
[378447930,1754867432372,-300.0,0.0002004,2]
[378447933,1754867432382,-300.0,0.0002004,2]
[378447934,1754867432391,-269.0,0.0002004,2]
[378447937,1754867432401,-300.0,0.0002004,2]
[378447940,1754867432411,-1430.0,0.00020041,2]
[378447944,1754867432420,-460.0,0.00020081,2]
[378447946,1754867432429,-531.12,0.00020081,2]
[378447948,1754867432438,-1430.0,0.00020082,2]
[378447951,1754867432447,-460.0,0.00020088,2]
[378447953,1754867432456,-460.0,0.00020088,2]
[378447955,1754867432465,-460.0,0.00020088,2]
[378447956,1754867432475,-749.23,0.00020088,2]
[378447958,1754867432484,-5309.0,0.00020089,2]
[378447960,1754867432494,-500.0,0.00020089,2]
[378447962,1754867432503,-500.0,0.00020089,2]
[378447963,1754867432513,-500.0,0.00020089,2]
[378447965,1754867432522,-500.0,0.00020089,2]
[378447967,1754867432532,-2894.71444509,0.00020099,2]
[378447969,1754867432541,-1430.0,0.00020118,2]
[378447971,1754867432550,-201.518703,0.00020187,2]
[378447973,1754867432559,-156.42115859,0.00020355,2]
[378447975,1754867432568,-460.0,0.00020362,2]
[378447976,1754867432578,-460.0,0.00020362,2]
[378447978,1754867432587,-308.03,0.00020362,2]
[378447980,1754867432596,-749.23,0.00020362,2]
[378447982,1754867432606,-2692.57136156,0.00020536,2]
[378447984,1754867432615,-334.45600397,0.00020582,2]
[378447986,1754867432624,-460.0,0.00020636,2]
[378447987,1754867432633,-460.0,0.00020636,2]
[378447989,1754867432643,-749.23,0.00020636,2]
[378447991,1754867432652,-151.0,0.00020638,2]
[378447993,1754867432661,-250.0,0.00020638,2]
[378447994,1754867432670,-151.0,0.00020638,2]
[378447996,1754867432679,-151.0,0.00020638,2]
[378447998,1754867432689,-250.0,0.00020638,2]
[378448000,1754867432699,-151.0,0.00020638,2]
[378448002,1754867432708,-151.0,0.00020638,2]
[378448003,1754867432718,-151.0,0.00020638,2]
[378448004,1754867432728,-250.0,0.00020638,2]
[378448005,1754867432741,-151.0,0.00020638,2]
[378448006,1754867432757,-151.0,0.00020638,2]
[378448007,1754867432767,-151.0,0.00020638,2]
[378448008,1754867432776,-250.0,0.00020638,2]
[378448009,1754867432786,-4885.51273585,0.00020638,2]
[378448064,1754867438242,-295.06679246,0.00020637,2]
[378448066,1754867438251,-4.93320754,0.00020637,2]
[378448069,1754867438275,-495.06679246,0.00020637,2]
[378448070,1754867438284,-500.0,0.00020637,2]
[378448071,1754867438293,-500.0,0.00020637,2]
[378448072,1754867438303,-500.0,0.00020637,2]
[378448073,1754867438312,-500.0,0.00020637,2]
[378448074,1754867438321,-500.0,0.00020637,2]
[378448075,1754867438330,-500.0,0.00020637,2]
[378448076,1754867438339,-500.0,0.00020637,2]
[378448077,1754867438348,-500.0,0.00020637,2]
[378448078,1754867438357,-500.0,0.00020637,2]
[378448079,1754867438366,-500.0,0.00020637,2]
[378448080,1754867438375,-500.0,0.00020637,2]
[378448081,1754867438516,-500.0,0.00020637,2]
[378448082,1754867438535,-167.22800198,0.00020638,2]
[378448084,1754867438545,-1659.24309211,0.00020638,2]
[378448086,1754867438557,-632.47425679,0.00020638,2]
[378448088,1754867438568,-387.48550098,0.00020638,2]
[378448679,1754867444214,-472.34418733,0.00020638,2]
[378448958,1754867446984,-460.0,0.00020088,2]
[378448960,1754867446993,-460.0,0.00020362,2]
[378448962,1754867447003,-220.74513888,0.00020636,2]
[378448964,1754867447012,-10465.63600552,0.00020638,2]
[378448966,1754867447022,-151.0,0.00020638,2]
[378448968,1754867447031,-151.0,0.00020638,2]
[378448970,1754867447040,-250.0,0.00020638,2]
[378448973,1754867447055,-151.0,0.00020638,2]
[378448974,1754867447065,-151.0,0.00020638,2]
[378448975,1754867447075,-151.0,0.00020638,2]
[378448976,1754867447084,-250.0,0.00020638,2]
[378448977,1754867447093,-151.0,0.00020638,2]
[378448978,1754867447103,-151.0,0.00020638,2]
[378448979,1754867447113,-151.0,0.00020638,2]
[378448980,1754867447122,-151.0,0.00020638,2]
[378448981,1754867447131,-250.0,0.00020638,2]
[378448982,1754867447141,-151.0,0.00020638,2]
[378448983,1754867447151,-151.0,0.00020638,2]
[378448984,1754867447160,-151.0,0.00020638,2]
[378448985,1754867447170,-151.0,0.00020638,2]
[378448986,1754867447180,-250.0,0.00020638,2]
[378448987,1754867447190,-151.0,0.00020638,2]
[378448988,1754867447199,-151.0,0.00020638,2]
[378448989,1754867447209,-151.0,0.00020638,2]
[378448990,1754867447219,-151.0,0.00020638,2]
[378448991,1754867447228,-151.0,0.00020638,2]
[378448992,1754867447237,-151.0,0.00020638,2]
[378448993,1754867447247,-250.0,0.00020638,2]
[378448994,1754867447256,-151.0,0.00020638,2]
[378448995,1754867447265,-151.0,0.00020638,2]
[378448996,1754867447274,-151.0,0.00020638,2]
[378448997,1754867447283,-151.0,0.00020638,2]
[378448998,1754867447293,-151.0,0.00020638,2]
[378448999,1754867447302,-151.0,0.00020638,2]
[378449000,1754867447311,-151.0,0.00020638,2]
[378449001,1754867447320,-151.0,0.00020638,2]
[378449002,1754867447330,-151.0,0.00020638,2]
[378449003,1754867447339,-151.0,0.00020638,2]
[378449004,1754867447349,-151.0,0.00020638,2]
[378449006,1754867447359,-151.0,0.00020638,2]
[378449007,1754867447367,-196.83053362,0.00020638,2]
[378449009,1754867447377,-151.0,0.00020638,2]
[378449011,1754867447386,-151.0,0.00020638,2]
[378449013,1754867447396,-263.85481817,0.00020638,2]
[378449015,1754867447405,-151.0,0.00020638,2]
[378449017,1754867447416,-151.0,0.00020638,2]
[378449019,1754867447426,-151.0,0.00020638,2]
[378449021,1754867447435,-151.0,0.00020638,2]
[378449023,1754867447444,-151.0,0.00020638,2]
[378449025,1754867447454,-500.0,0.00020638,2]
[378449027,1754867447463,-151.0,0.00020638,2]
[378449029,1754867447472,-151.0,0.00020638,2]
[378449031,1754867447482,-500.0,0.00020638,2]
[378449033,1754867447491,-151.0,0.00020638,2]
[378449035,1754867447501,-151.0,0.00020638,2]
[378449037,1754867447510,-500.0,0.00020638,2]
[378449038,1754867447519,-151.0,0.00020638,2]
[378449039,1754867447529,-151.0,0.00020638,2]
[378449040,1754867447539,-500.0,0.00020638,2]
[378449041,1754867447548,-233.80049677,0.00020638,2]
[378449042,1754867447558,-151.0,0.00020638,2]
[378449043,1754867447567,-500.0,0.00020638,2]
[378449044,1754867447579,-151.0,0.00020638,2]
[378449045,1754867447589,-500.0,0.00020638,2]
[378449046,1754867447598,-500.0,0.00020638,2]
[378449047,1754867447607,-151.0,0.00020638,2]
[378449048,1754867447617,-151.0,0.00020638,2]
[378449049,1754867447626,-500.0,0.00020638,2]
[378449050,1754867447636,-151.0,0.00020638,2]
[378449051,1754867447645,-151.0,0.00020638,2]
[378449052,1754867447655,-500.0,0.00020638,2]
[378449053,1754867447665,-256.01205118,0.00020638,2]
[378449054,1754867447675,-151.0,0.00020638,2]
[378449055,1754867447685,-500.0,0.00020638,2]
[378449056,1754867447694,-151.0,0.00020638,2]
[378449057,1754867447704,-500.0,0.00020638,2]
[378449058,1754867447714,-151.0,0.00020638,2]
[378449059,1754867447723,-500.0,0.00020638,2]
[378449060,1754867447732,-151.0,0.00020638,2]
[378449061,1754867447743,-500.0,0.00020638,2]
[378449062,1754867447753,-151.0,0.00020638,2]
[378449063,1754867447762,-500.0,0.00020638,2]
[378449064,1754867447771,-151.0,0.00020638,2]
[378449065,1754867447781,-500.0,0.00020638,2]
[378449066,1754867447790,-151.0,0.00020638,2]
[378449067,1754867447799,-500.0,0.00020638,2]
[378449068,1754867447809,-151.0,0.00020638,2]
[378449069,1754867447818,-151.0,0.00020638,2]
[378449070,1754867447827,-151.0,0.00020638,2]
[378449071,1754867447837,-151.0,0.00020638,2]
[378449072,1754867447846,-151.0,0.00020638,2]
[378449073,1754867447855,-151.0,0.00020638,2]
[378449074,1754867447864,-151.0,0.00020638,2]
[378449075,1754867447874,-460.0,0.0002065,2]
[378449076,1754867447883,-179.73141425,0.0002065,2]
[378449097,1754867515213,3275.84743716,0.000199,2]
[378449099,1754867537728,800.0,0.00019873,2]
[378449100,1754867537781,800.0,0.00019827,2]
[378449101,1754867544934,150.0,0.000189,2]
[378449104,1754867657581,800.0,0.00019828,2]
[378449105,1754867657869,800.0,0.00019917,2]
[378449106,1754867714083,3432.58561546,0.000199,2]
[378449111,1754867779436,800.0,0.00019817,2]
[378449112,1754867779487,800.0,0.00019895,2]
[378449113,1754867779588,800.0,0.00019951,2]
[378449114,1754867779648,800.0,0.00019837,2]
[378449116,1754867838013,800.0,0.00019853,2]
[378449117,1754867838312,800.0,0.00019926,2]
[378449118,1754867846358,150.0,0.000189,2]
[378449120,1754867862303,3074.9501004,0.00019346,2]
[378449121,1754867908019,3678.40144146,0.000199,2]
[378449125,1754868003227,200.2017017,0.00019284,2]
[378449130,1754868017584,800.0,0.00019928,2]
[378449131,1754868017638,410.61488933,0.00019815,2]
[378449134,1754868075018,268.042977,0.0001926,2]
[378449136,1754868084049,800.0,0.00019945,2]
[378449137,1754868103650,693.57616151,0.000199,2]
[378449138,1754868103678,2988.93264898,0.000199,2]
[378449139,1754868128227,240.497779,0.00013699,2]
[378449141,1754868138465,800.0,0.00019818,2]
[378449146,1754868191655,24900.0,0.00019224,2]